[Event "Early-Titled-Tuesday-Blitz-September-05-2023"]
[Site "Chess.com"]
[Date "2023.09.05"]
[Round "3"]
[White "03revilo"]
[Black "juancruzarias"]
[Result "1-0"]
[WhiteElo "2437"]
[BlackElo "2675"]
[TimeControl "180+1"]
[EndTime "8:25:11 PDT"]
[Termination "03revilo won by resignation"]

1. e4 {[%clk 0:03:00.9]} 1... c6 {[%clk 0:02:58.6]} 2. Nf3 {[%clk 0:03:00.6]}
2... d5 {[%clk 0:02:58.7]} 3. Nc3 {[%clk 0:03:01.3]} 3... dxe4 {[%clk
0:02:57.7]} 4. Nxe4 {[%clk 0:03:02.2]} 4... Nf6 {[%clk 0:02:57.7]} 5. Qe2 {[%clk
0:03:02.7]} 5... Nxe4 {[%clk 0:02:57.7]} 6. Qxe4 {[%clk 0:03:03.6]} 6... Be6
{[%clk 0:02:58.2]} 7. c4 {[%clk 0:02:54.3]} 7... Nd7 {[%clk 0:02:57.8]} 8. d4
{[%clk 0:02:53.6]} 8... Nf6 {[%clk 0:02:56.4]} 9. Qc2 {[%clk 0:02:53.2]} 9... g6
{[%clk 0:02:56]} 10. Bf4 {[%clk 0:02:47.7]} 10... Bf5 {[%clk 0:02:55.6]} 11. Bd3
{[%clk 0:02:45.6]} 11... Bxd3 {[%clk 0:02:53.6]} 12. Qxd3 {[%clk 0:02:46.5]}
12... Bg7 {[%clk 0:02:54]} 13. O-O {[%clk 0:02:45.9]} 13... O-O {[%clk
0:02:53.7]} 14. Rfe1 {[%clk 0:02:45.9]} 14... e6 {[%clk 0:02:46.5]} 15. Rab1
{[%clk 0:02:44.6]} 15... Qa5 {[%clk 0:02:39.3]} 16. b4 {[%clk 0:02:39.2]} 16...
Qf5 {[%clk 0:02:34.4]} 17. Qxf5 {[%clk 0:02:35.8]} 17... gxf5 {[%clk 0:02:21.9]}
18. b5 {[%clk 0:02:35.7]} 18... cxb5 {[%clk 0:02:18]} 19. Rxb5 {[%clk
0:02:34.8]} 19... b6 {[%clk 0:02:05.9]} 20. c5 {[%clk 0:02:16.4]} 20... Nd5
{[%clk 0:02:04.1]} 21. Be5 {[%clk 0:02:15.9]} 21... Rfc8 {[%clk 0:01:58]} 22.
Rc1 {[%clk 0:02:11.4]} 22... bxc5 {[%clk 0:01:52.1]} 23. dxc5 {[%clk 0:02:11.4]}
23... Bf8 {[%clk 0:01:51.4]} 24. c6 {[%clk 0:02:09.1]} 24... f6 {[%clk
0:01:41.6]} 25. Rxd5 {[%clk 0:01:54.8]} 25... exd5 {[%clk 0:01:41.2]} 26. Bf4
{[%clk 0:01:54.9]} 26... a5 {[%clk 0:01:35.3]} 27. Nd4 {[%clk 0:01:50.5]} 27...
Ra6 {[%clk 0:01:35.1]} 28. c7 {[%clk 0:01:50.4]} 28... Bd6 {[%clk 0:01:34.8]}
29. Nxf5 {[%clk 0:01:23.8]} 29... Bxf4 {[%clk 0:01:19.6]} 30. Ne7+ {[%clk
0:01:23.4]} 30... Kf8 {[%clk 0:01:12]} 31. Nxc8 {[%clk 0:01:24.3]} 31... Bxc1
{[%clk 0:01:11.7]} 32. Nb6 {[%clk 0:01:22.9]} 1-0

[Event "Early-Titled-Tuesday-Blitz-September-05-2023"]
[Site "Chess.com"]
[Date "2023.09.05"]
[Round "3"]
[White "merinasian"]
[Black "baki83"]
[Result "0-1"]
[WhiteElo "2443"]
[BlackElo "2833"]
[TimeControl "180+1"]
[EndTime "8:25:27 PDT"]
[Termination "baki83 won by resignation"]

1. d4 {[%clk 0:02:36.2]} 1... d5 {[%clk 0:02:59.2]} 2. Nf3 {[%clk 0:02:35.1]}
2... Nf6 {[%clk 0:02:57.5]} 3. g3 {[%clk 0:02:31.6]} 3... Bf5 {[%clk 0:02:56]}
4. Bg2 {[%clk 0:02:31.7]} 4... e6 {[%clk 0:02:56.5]} 5. c4 {[%clk 0:02:31.4]}
5... c6 {[%clk 0:02:56.9]} 6. Nc3 {[%clk 0:02:31.6]} 6... Bd6 {[%clk 0:02:55.5]}
7. Qb3 {[%clk 0:02:31.4]} 7... Qc8 {[%clk 0:02:51]} 8. O-O {[%clk 0:02:28.9]}
8... Nbd7 {[%clk 0:02:47.4]} 9. Nh4 {[%clk 0:02:11.7]} 9... Bg6 {[%clk
0:02:42.4]} 10. Nxg6 {[%clk 0:02:06.3]} 10... hxg6 {[%clk 0:02:42.5]} 11. e4
{[%clk 0:02:05.5]} 11... dxe4 {[%clk 0:02:42.8]} 12. Nxe4 {[%clk 0:02:05.7]}
12... Nxe4 {[%clk 0:02:41.5]} 13. Bxe4 {[%clk 0:02:05.9]} 13... e5 {[%clk
0:02:33.3]} 14. dxe5 {[%clk 0:01:59.7]} 14... Nc5 {[%clk 0:02:33.2]} 15. Qc2
{[%clk 0:01:35]} 15... Qh3 {[%clk 0:02:03.9]} 16. Re1 {[%clk 0:01:34.2]} 16...
Nxe4 {[%clk 0:01:53.4]} 17. Qxe4 {[%clk 0:01:32.3]} 17... Qxh2+ {[%clk 0:01:53]}
18. Kf1 {[%clk 0:01:32.5]} 18... Qh1+ {[%clk 0:01:23.7]} 19. Qxh1 {[%clk
0:01:24.6]} 19... Rxh1+ {[%clk 0:01:23.5]} 20. Ke2 {[%clk 0:01:24.9]} 20...
Rxe1+ {[%clk 0:01:24.1]} 21. Kxe1 {[%clk 0:01:25.1]} 21... Bxe5 {[%clk
0:01:24.6]} 22. Kd1 {[%clk 0:01:21.4]} 22... O-O-O+ {[%clk 0:01:24]} 23. Kc2
{[%clk 0:01:21.6]} 23... Bd4 {[%clk 0:01:24.5]} 24. f3 {[%clk 0:01:06.8]} 24...
Rh8 {[%clk 0:01:23.1]} 25. Bd2 {[%clk 0:01:02.3]} 25... Rh3 {[%clk 0:01:17.4]}
26. Rd1 {[%clk 0:00:57.4]} 26... Rxg3 {[%clk 0:01:13.5]} 27. b3 {[%clk
0:00:50.5]} 27... Rxf3 {[%clk 0:01:10.3]} 0-1

[Event "Early-Titled-Tuesday-Blitz-September-05-2023"]
[Site "Chess.com"]
[Date "2023.09.05"]
[Round "3"]
[White "Markov_Mikhail"]
[Black "XDPS"]
[Result "0-1"]
[WhiteElo "2647"]
[BlackElo "2866"]
[TimeControl "180+1"]
[EndTime "8:25:35 PDT"]
[Termination "XDPS won on time"]

1. c4 {[%clk 0:02:55.4]} 1... c6 {[%clk 0:02:58.3]} 2. Nf3 {[%clk 0:02:55.5]}
2... d5 {[%clk 0:02:58.9]} 3. Nc3 {[%clk 0:02:56]} 3... Nf6 {[%clk 0:02:59.5]}
4. e3 {[%clk 0:02:56.4]} 4... e6 {[%clk 0:02:59.2]} 5. d4 {[%clk 0:02:56.7]}
5... Nbd7 {[%clk 0:02:59.3]} 6. Bd3 {[%clk 0:02:55]} 6... Be7 {[%clk 0:02:59.9]}
7. O-O {[%clk 0:02:55.5]} 7... O-O {[%clk 0:03:00.5]} 8. b3 {[%clk 0:02:54.4]}
8... b6 {[%clk 0:03:00.5]} 9. Qe2 {[%clk 0:02:49.1]} 9... Bb7 {[%clk 0:03:00.9]}
10. e4 {[%clk 0:02:49.6]} 10... dxe4 {[%clk 0:03:01.4]} 11. Nxe4 {[%clk
0:02:50.5]} 11... c5 {[%clk 0:03:02]} 12. Bb2 {[%clk 0:02:42.4]} 12... Qc7
{[%clk 0:03:02.5]} 13. Rfd1 {[%clk 0:02:37.3]} 13... Rad8 {[%clk 0:03:02.1]} 14.
h3 {[%clk 0:02:32.2]} 14... h6 {[%clk 0:03:02.1]} 15. Rac1 {[%clk 0:02:26.2]}
15... Nh5 {[%clk 0:03:01.9]} 16. Bb1 {[%clk 0:02:20.8]} 16... Nf4 {[%clk
0:03:01.2]} 17. Qe3 {[%clk 0:02:20.9]} 17... f5 {[%clk 0:02:58]} 18. Ned2 {[%clk
0:01:59.4]} 18... Bf6 {[%clk 0:02:57]} 19. Nf1 {[%clk 0:01:50.1]} 19... Rfe8
{[%clk 0:02:55.1]} 20. h4 {[%clk 0:01:36.4]} 20... cxd4 {[%clk 0:02:50.3]} 21.
Bxd4 {[%clk 0:01:37.3]} 21... e5 {[%clk 0:02:47.4]} 22. Bc3 {[%clk 0:01:31.8]}
22... e4 {[%clk 0:02:34.3]} 23. Bxf6 {[%clk 0:01:19.8]} 23... Nxf6 {[%clk
0:02:34]} 24. Nd4 {[%clk 0:01:18.6]} 24... Ng4 {[%clk 0:02:32.4]} 25. Qe1 {[%clk
0:01:07.6]} 25... e3 {[%clk 0:01:58.5]} 26. Nxe3 {[%clk 0:00:21.2]} 26... Nxg2
{[%clk 0:01:55.7]} 27. Nb5 {[%clk 0:00:15.7]} 27... Qh2+ {[%clk 0:01:55.8]} 0-1

[Event "Early-Titled-Tuesday-Blitz-September-05-2023"]
[Site "Chess.com"]
[Date "2023.09.05"]
[Round "3"]
[White "colegiodemadrid"]
[Black "qx4z"]
[Result "0-1"]
[WhiteElo "2461"]
[BlackElo "2835"]
[TimeControl "180+1"]
[EndTime "8:25:55 PDT"]
[Termination "qx4z won by resignation"]

1. e4 {[%clk 0:02:59.6]} 1... e5 {[%clk 0:03:00.1]} 2. Nf3 {[%clk 0:02:59.1]}
2... Nc6 {[%clk 0:03:00.2]} 3. Bc4 {[%clk 0:03:00]} 3... Nf6 {[%clk 0:03:00.3]}
4. d4 {[%clk 0:02:59.8]} 4... exd4 {[%clk 0:03:00.4]} 5. e5 {[%clk 0:02:58.9]}
5... d5 {[%clk 0:03:00.6]} 6. Bb5 {[%clk 0:02:59.6]} 6... Ne4 {[%clk 0:02:58.5]}
7. Nxd4 {[%clk 0:02:59.5]} 7... Bc5 {[%clk 0:02:58.2]} 8. O-O {[%clk 0:02:49]}
8... Bd7 {[%clk 0:02:55.7]} 9. Bxc6 {[%clk 0:02:47.4]} 9... bxc6 {[%clk
0:02:56.6]} 10. Nb3 {[%clk 0:02:46]} 10... Bb6 {[%clk 0:02:51.5]} 11. a4 {[%clk
0:02:46.5]} 11... Qh4 {[%clk 0:02:43.9]} 12. Qe1 {[%clk 0:02:32.8]} 12... a5
{[%clk 0:02:18.6]} 13. N1d2 {[%clk 0:02:32.7]} 13... Ng5 {[%clk 0:02:14.9]} 14.
Kh1 {[%clk 0:02:26.8]} 14... Bf5 {[%clk 0:02:05.9]} 15. c3 {[%clk 0:02:22.1]}
15... Bd3 {[%clk 0:02:04.6]} 16. f4 {[%clk 0:02:17.3]} 16... Qxe1 {[%clk
0:01:55.7]} 17. Rxe1 {[%clk 0:02:17.7]} 17... Bf2 {[%clk 0:01:56.6]} 18. Rg1
{[%clk 0:01:27]} 18... Bxg1 {[%clk 0:01:51.7]} 19. Kxg1 {[%clk 0:01:27.3]} 19...
Ne4 {[%clk 0:01:41.3]} 20. Nf3 {[%clk 0:01:27.4]} 20... O-O {[%clk 0:01:37.5]}
21. Nbd4 {[%clk 0:01:26.5]} 21... c5 {[%clk 0:01:33.1]} 22. Nf5 {[%clk
0:01:25.8]} 22... Rfe8 {[%clk 0:01:31]} 23. Ne3 {[%clk 0:01:23.5]} 23... c6
{[%clk 0:01:30.2]} 24. g3 {[%clk 0:01:17.5]} 24... Rab8 {[%clk 0:01:30]} 25. Ng4
{[%clk 0:01:16.3]} 25... Be2 {[%clk 0:01:25.1]} 26. Kg2 {[%clk 0:01:15.3]} 26...
Bxf3+ {[%clk 0:01:09.4]} 27. Kxf3 {[%clk 0:01:16]} 27... c4 {[%clk 0:01:09.7]}
28. Ra2 {[%clk 0:01:12.3]} 28... Nc5 {[%clk 0:01:09.3]} 29. Nf2 {[%clk
0:01:09.3]} 29... Nb3 {[%clk 0:01:04.2]} 30. Be3 {[%clk 0:01:08.6]} 30... c5
{[%clk 0:01:05]} 31. Ng4 {[%clk 0:01:02]} 31... d4 {[%clk 0:01:03.3]} 32. Bf2
{[%clk 0:01:02.3]} 32... h5 {[%clk 0:00:59.2]} 0-1

[Event "Early-Titled-Tuesday-Blitz-September-05-2023"]
[Site "Chess.com"]
[Date "2023.09.05"]
[Round "3"]
[White "WelshTiger"]
[Black "Alexander_Donchenko"]
[Result "0-1"]
[WhiteElo "2494"]
[BlackElo "2845"]
[TimeControl "180+1"]
[EndTime "8:25:57 PDT"]
[Termination "Alexander_Donchenko won by resignation"]

1. e4 {[%clk 0:03:00.9]} 1... e5 {[%clk 0:02:58.5]} 2. Nf3 {[%clk 0:03:00]} 2...
Nc6 {[%clk 0:02:59.1]} 3. d4 {[%clk 0:03:00.5]} 3... exd4 {[%clk 0:02:58.4]} 4.
Bc4 {[%clk 0:03:01.2]} 4... Nf6 {[%clk 0:02:58.1]} 5. e5 {[%clk 0:03:01.3]} 5...
Ne4 {[%clk 0:02:57.8]} 6. O-O {[%clk 0:02:54.3]} 6... Be7 {[%clk 0:02:48.5]} 7.
c3 {[%clk 0:02:48.8]} 7... d5 {[%clk 0:02:40.7]} 8. Bb5 {[%clk 0:02:47.5]} 8...
dxc3 {[%clk 0:02:39.3]} 9. Nxc3 {[%clk 0:02:46.9]} 9... Nxc3 {[%clk 0:02:38.6]}
10. bxc3 {[%clk 0:02:47]} 10... O-O {[%clk 0:02:38.8]} 11. Bf4 {[%clk
0:02:34.9]} 11... Bg4 {[%clk 0:02:36.3]} 12. h3 {[%clk 0:02:34.8]} 12... Bh5
{[%clk 0:02:36.2]} 13. Qd3 {[%clk 0:02:28.5]} 13... a6 {[%clk 0:02:31.1]} 14.
Ba4 {[%clk 0:02:28.6]} 14... b5 {[%clk 0:02:30.5]} 15. Bb3 {[%clk 0:02:28.9]}
15... Na5 {[%clk 0:02:25]} 16. Bxd5 {[%clk 0:02:16.4]} 16... c6 {[%clk 0:02:24]}
17. Be4 {[%clk 0:02:16.7]} 17... Qxd3 {[%clk 0:02:22.8]} 18. Bxd3 {[%clk
0:02:17.1]} 18... Rfd8 {[%clk 0:02:16]} 19. Be4 {[%clk 0:02:07.3]} 19... Bg6
{[%clk 0:02:16]} 20. Bxg6 {[%clk 0:02:06.9]} 20... hxg6 {[%clk 0:02:16.9]} 21.
a4 {[%clk 0:02:07.4]} 21... Nb3 {[%clk 0:02:13.8]} 22. Ra2 {[%clk 0:02:02]}
22... Nc5 {[%clk 0:02:08.9]} 23. axb5 {[%clk 0:02:01.5]} 23... cxb5 {[%clk
0:02:09.1]} 24. Nd4 {[%clk 0:01:55.2]} 24... Rdc8 {[%clk 0:02:06.4]} 25. Rfa1
{[%clk 0:01:51.7]} 25... Na4 {[%clk 0:02:05]} 26. Bd2 {[%clk 0:01:41]} 26... Bc5
{[%clk 0:02:01.9]} 27. Nb3 {[%clk 0:01:29.8]} 27... Bb6 {[%clk 0:01:58.2]} 28.
e6 {[%clk 0:01:09.3]} 28... fxe6 {[%clk 0:01:56.7]} 29. Re1 {[%clk 0:01:06.1]}
29... Rc6 {[%clk 0:01:49.2]} 30. Nd4 {[%clk 0:01:05.1]} 30... Bxd4 {[%clk
0:01:48.4]} 31. cxd4 {[%clk 0:01:06]} 31... Nb6 {[%clk 0:01:43.4]} 32. Bb4
{[%clk 0:01:02]} 32... Nc4 {[%clk 0:01:40.7]} 33. Bc5 {[%clk 0:01:02.4]} 33...
a5 {[%clk 0:01:35.3]} 34. Rb1 {[%clk 0:01:01.9]} 34... Rb8 {[%clk 0:01:35.2]}
35. Rc2 {[%clk 0:00:45.1]} 35... Na3 {[%clk 0:01:34.7]} 0-1

[Event "Early-Titled-Tuesday-Blitz-September-05-2023"]
[Site "Chess.com"]
[Date "2023.09.05"]
[Round "3"]
[White "Bauman_Guy"]
[Black "the-gambler"]
[Result "1-0"]
[WhiteElo "2853"]
[BlackElo "2578"]
[TimeControl "180+1"]
[EndTime "8:25:58 PDT"]
[Termination "Bauman_Guy won by resignation"]

1. e4 {[%clk 0:03:00.9]} 1... Nf6 {[%clk 0:02:58.1]} 2. e5 {[%clk 0:03:01.1]}
2... Nd5 {[%clk 0:02:58.2]} 3. d4 {[%clk 0:03:02]} 3... d6 {[%clk 0:02:57.6]} 4.
Bc4 {[%clk 0:03:02.2]} 4... Nb6 {[%clk 0:02:56.7]} 5. Bb3 {[%clk 0:03:02.5]}
5... Bf5 {[%clk 0:02:56.6]} 6. Qf3 {[%clk 0:02:54.3]} 6... Qc8 {[%clk
0:02:55.6]} 7. Ne2 {[%clk 0:02:54.3]} 7... e6 {[%clk 0:02:53.6]} 8. Ng3 {[%clk
0:02:53]} 8... Bg6 {[%clk 0:02:52.4]} 9. exd6 {[%clk 0:02:47.1]} 9... cxd6
{[%clk 0:02:51.5]} 10. c3 {[%clk 0:02:47]} 10... Nc6 {[%clk 0:02:46.3]} 11. Nd2
{[%clk 0:02:46.8]} 11... d5 {[%clk 0:02:37.4]} 12. O-O {[%clk 0:02:46]} 12...
Be7 {[%clk 0:02:35.3]} 13. Re1 {[%clk 0:02:45.8]} 13... O-O {[%clk 0:02:32.9]}
14. Ndf1 {[%clk 0:02:45.9]} 14... Nc4 {[%clk 0:02:28.1]} 15. Ne3 {[%clk
0:02:44.4]} 15... b5 {[%clk 0:02:25.3]} 16. Ng4 {[%clk 0:02:25.3]} 16... Qd7
{[%clk 0:01:46.7]} 17. Re2 {[%clk 0:02:18]} 17... Rac8 {[%clk 0:01:23.4]} 18.
Bf4 {[%clk 0:02:16]} 18... b4 {[%clk 0:01:18.4]} 19. Rae1 {[%clk 0:02:14.3]}
19... bxc3 {[%clk 0:01:17.8]} 20. bxc3 {[%clk 0:02:15.2]} 20... N6a5 {[%clk
0:01:09.8]} 21. h3 {[%clk 0:02:09.5]} 21... Nxb3 {[%clk 0:01:04.9]} 22. axb3
{[%clk 0:02:10.4]} 22... Na5 {[%clk 0:01:04.1]} 23. Ne5 {[%clk 0:02:10.5]} 23...
Qb5 {[%clk 0:01:02.3]} 24. b4 {[%clk 0:02:01.8]} 24... Nc4 {[%clk 0:01:00.1]}
25. Nxg6 {[%clk 0:01:56.7]} 25... hxg6 {[%clk 0:00:55.8]} 26. Qg4 {[%clk
0:01:57]} 26... Nd6 {[%clk 0:00:47.6]} 27. Re3 {[%clk 0:01:48.7]} 27... Rc6
{[%clk 0:00:39.9]} 28. h4 {[%clk 0:01:48.4]} 28... Nf5 {[%clk 0:00:37.1]} 29.
Nxf5 {[%clk 0:01:48.3]} 29... gxf5 {[%clk 0:00:36.7]} 30. Qg3 {[%clk 0:01:47.8]}
30... Kh7 {[%clk 0:00:25.4]} 31. Be5 {[%clk 0:01:47]} 31... Bf6 {[%clk
0:00:19.3]} 32. Qf3 {[%clk 0:01:39.8]} 32... Rh8 {[%clk 0:00:16.6]} 33. Bxf6
{[%clk 0:01:38.8]} 33... gxf6 {[%clk 0:00:16.4]} 34. Qh5+ {[%clk 0:01:39.1]} 1-0

[Event "Early-Titled-Tuesday-Blitz-September-05-2023"]
[Site "Chess.com"]
[Date "2023.09.05"]
[Round "3"]
[White "ckgchess"]
[Black "Agibileg"]
[Result "1-0"]
[WhiteElo "2870"]
[BlackElo "2663"]
[TimeControl "180+1"]
[EndTime "8:25:59 PDT"]
[Termination "ckgchess won by resignation"]

1. e4 {[%clk 0:03:00.9]} 1... c5 {[%clk 0:02:59.8]} 2. c3 {[%clk 0:03:01]} 2...
Nf6 {[%clk 0:02:59.4]} 3. e5 {[%clk 0:03:01.4]} 3... Nd5 {[%clk 0:02:59.6]} 4.
d4 {[%clk 0:03:02.3]} 4... cxd4 {[%clk 0:02:59.9]} 5. Bc4 {[%clk 0:03:02.8]}
5... e6 {[%clk 0:02:59.6]} 6. cxd4 {[%clk 0:03:02.6]} 6... d6 {[%clk 0:02:59.6]}
7. Nf3 {[%clk 0:03:02.6]} 7... Be7 {[%clk 0:02:59.5]} 8. O-O {[%clk 0:03:02.6]}
8... O-O {[%clk 0:02:59.3]} 9. Qe2 {[%clk 0:03:02.5]} 9... b6 {[%clk 0:02:54.3]}
10. Bxd5 {[%clk 0:03:01.2]} 10... exd5 {[%clk 0:02:54.4]} 11. Rd1 {[%clk
0:03:02]} 11... Ba6 {[%clk 0:02:17.9]} 12. Qc2 {[%clk 0:02:53]} 12... Nd7 {[%clk
0:02:10.9]} 13. Nc3 {[%clk 0:02:52.9]} 13... Bb7 {[%clk 0:02:10.7]} 14. Bf4
{[%clk 0:02:48.3]} 14... dxe5 {[%clk 0:01:55.3]} 15. dxe5 {[%clk 0:02:49.2]}
15... Nc5 {[%clk 0:01:55.4]} 16. Nd4 {[%clk 0:02:38.9]} 16... Ne6 {[%clk
0:01:42.1]} 17. Be3 {[%clk 0:02:10.2]} 17... Qc7 {[%clk 0:01:37.7]} 18. Nf5
{[%clk 0:01:57.1]} 18... Rfd8 {[%clk 0:01:15.5]} 19. Rac1 {[%clk 0:01:52.9]}
19... Rac8 {[%clk 0:01:12.3]} 20. Qe2 {[%clk 0:01:21.9]} 20... Bc5 {[%clk
0:01:09.4]} 21. Bxc5 {[%clk 0:01:17.1]} 21... bxc5 {[%clk 0:01:00.6]} 22. Nd6
{[%clk 0:01:16.9]} 22... d4 {[%clk 0:01:00.9]} 23. Ncb5 {[%clk 0:01:06.9]} 23...
Qc6 {[%clk 0:01:00.4]} 24. Nxb7 {[%clk 0:01:03.2]} 24... Qxb7 {[%clk 0:00:48.7]}
25. Nd6 {[%clk 0:01:03.5]} 25... Qd5 {[%clk 0:00:48]} 26. Nxc8 {[%clk
0:01:02.6]} 26... Nf4 {[%clk 0:00:47.9]} 27. Qg4 {[%clk 0:01:01.9]} 1-0

[Event "Early-Titled-Tuesday-Blitz-September-05-2023"]
[Site "Chess.com"]
[Date "2023.09.05"]
[Round "3"]
[White "Hoshka"]
[Black "GaiozNigalidze"]
[Result "0-1"]
[WhiteElo "2047"]
[BlackElo "2751"]
[TimeControl "180+1"]
[EndTime "8:26:10 PDT"]
[Termination "GaiozNigalidze won by resignation"]

1. d4 {[%clk 0:02:59.4]} 1... Nf6 {[%clk 0:02:59.7]} 2. c4 {[%clk 0:02:58.8]}
2... e6 {[%clk 0:02:59.4]} 3. g3 {[%clk 0:02:58.8]} 3... d5 {[%clk 0:03:00.3]}
4. Bg2 {[%clk 0:02:58.7]} 4... Bb4+ {[%clk 0:03:00.7]} 5. Bd2 {[%clk 0:02:58.3]}
5... Be7 {[%clk 0:03:01.6]} 6. Nf3 {[%clk 0:02:58.1]} 6... O-O {[%clk 0:03:02]}
7. O-O {[%clk 0:02:57.9]} 7... dxc4 {[%clk 0:03:02.6]} 8. Qc2 {[%clk 0:02:57.3]}
8... a6 {[%clk 0:03:02.9]} 9. Qxc4 {[%clk 0:02:56.5]} 9... b5 {[%clk 0:03:03.3]}
10. Qc2 {[%clk 0:02:55.7]} 10... Bb7 {[%clk 0:03:03]} 11. Rc1 {[%clk 0:02:53.1]}
11... Nbd7 {[%clk 0:03:01.9]} 12. Qxc7 {[%clk 0:02:43.3]} 12... Qxc7 {[%clk
0:02:59.1]} 13. Rxc7 {[%clk 0:02:42.7]} 13... Rab8 {[%clk 0:02:59.1]} 14. Ba5
{[%clk 0:02:36.4]} 14... Bd8 {[%clk 0:02:52.8]} 15. Nbd2 {[%clk 0:02:32.2]}
15... Bxc7 {[%clk 0:02:51.1]} 16. Bxc7 {[%clk 0:02:31.8]} 16... Rbc8 {[%clk
0:02:51.2]} 17. Bd6 {[%clk 0:02:29.8]} 17... Rfe8 {[%clk 0:02:51.3]} 18. Nb3
{[%clk 0:02:15.7]} 18... Bd5 {[%clk 0:02:47.3]} 19. Na5 {[%clk 0:02:12]} 19...
Rc2 {[%clk 0:02:45.8]} 20. b4 {[%clk 0:02:02.5]} 20... Rec8 {[%clk 0:02:42.2]}
21. h3 {[%clk 0:01:50.1]} 21... Rxa2 {[%clk 0:02:37.7]} 22. Rxa2 {[%clk
0:01:48.2]} 22... Bxa2 {[%clk 0:02:37.4]} 23. e3 {[%clk 0:01:44.7]} 23... Bd5
{[%clk 0:02:37.3]} 24. Ne5 {[%clk 0:01:39.2]} 24... Bxg2 {[%clk 0:02:34.9]} 25.
Kxg2 {[%clk 0:01:39.1]} 25... Nxe5 {[%clk 0:02:35.4]} 26. Bxe5 {[%clk
0:01:36.4]} 26... Nd5 {[%clk 0:02:35.9]} 27. Bd6 {[%clk 0:01:35.3]} 27... Rc2
{[%clk 0:02:35.9]} 28. Kf3 {[%clk 0:01:34]} 28... f5 {[%clk 0:02:32.8]} 29. Bc5
{[%clk 0:01:25.2]} 29... Nc3 {[%clk 0:02:30]} 30. Kf4 {[%clk 0:01:16.9]} 30...
Rxf2+ {[%clk 0:02:27.8]} 31. Ke5 {[%clk 0:01:16.7]} 31... Rf3 {[%clk 0:02:27.1]}
32. Kxe6 {[%clk 0:01:14.9]} 32... Rxe3+ {[%clk 0:02:27.5]} 33. Kxf5 {[%clk
0:01:14.7]} 33... Rxg3 {[%clk 0:02:28.4]} 34. h4 {[%clk 0:01:13.9]} 34... g6+
{[%clk 0:02:23]} 35. Kf4 {[%clk 0:01:11.7]} 35... Rh3 {[%clk 0:02:18.8]} 36. Kg4
{[%clk 0:01:10.7]} 36... Rd3 {[%clk 0:02:18.4]} 37. Nc6 {[%clk 0:01:03.6]} 37...
Nd5 {[%clk 0:02:18]} 38. h5 {[%clk 0:00:53.3]} 38... Kg7 {[%clk 0:02:12]} 39.
hxg6 {[%clk 0:00:52.5]} 39... hxg6 {[%clk 0:02:12]} 40. Nb8 {[%clk 0:00:51.8]}
40... Nxb4 {[%clk 0:02:10.9]} 41. Kf4 {[%clk 0:00:45.3]} 41... a5 {[%clk
0:02:07.5]} 42. Ke4 {[%clk 0:00:43.8]} 42... Rd1 {[%clk 0:02:07.4]} 43. Nd7
{[%clk 0:00:38.3]} 43... Re1+ {[%clk 0:02:02.9]} 44. Kf4 {[%clk 0:00:37.9]}
44... Nd5+ {[%clk 0:02:00.5]} 45. Kf3 {[%clk 0:00:37.7]} 45... b4 {[%clk
0:01:59.6]} 46. Bf8+ {[%clk 0:00:33.8]} 46... Kf7 {[%clk 0:01:58.6]} 47. Bh6
{[%clk 0:00:31.7]} 47... b3 {[%clk 0:01:57.6]} 48. Ne5+ {[%clk 0:00:31.1]} 48...
Rxe5 {[%clk 0:01:48.6]} 49. dxe5 {[%clk 0:00:30.1]} 49... b2 {[%clk 0:01:48.4]}
0-1

[Event "Early-Titled-Tuesday-Blitz-September-05-2023"]
[Site "Chess.com"]
[Date "2023.09.05"]
[Round "3"]
[White "HanSchut"]
[Black "Eloist"]
[Result "0-1"]
[WhiteElo "2250"]
[BlackElo "2437"]
[TimeControl "180+1"]
[EndTime "8:26:12 PDT"]
[Termination "Eloist won by resignation"]

1. e4 {[%clk 0:03:00.9]} 1... e6 {[%clk 0:02:59.1]} 2. d4 {[%clk 0:02:59.7]}
2... d5 {[%clk 0:02:59.3]} 3. e5 {[%clk 0:03:00.3]} 3... c5 {[%clk 0:02:58.8]}
4. c3 {[%clk 0:03:01]} 4... Qb6 {[%clk 0:02:59]} 5. Nf3 {[%clk 0:03:00.2]} 5...
Bd7 {[%clk 0:02:58.7]} 6. Bd3 {[%clk 0:02:53.8]} 6... cxd4 {[%clk 0:02:57.8]} 7.
cxd4 {[%clk 0:02:51.9]} 7... Nc6 {[%clk 0:02:56.6]} 8. Bc2 {[%clk 0:02:34.6]}
8... Nb4 {[%clk 0:02:55.6]} 9. Nc3 {[%clk 0:02:29.9]} 9... Nxc2+ {[%clk
0:02:54.9]} 10. Qxc2 {[%clk 0:02:30.1]} 10... Ne7 {[%clk 0:02:53]} 11. O-O
{[%clk 0:02:23.7]} 11... Nf5 {[%clk 0:02:51.7]} 12. Be3 {[%clk 0:02:18.8]} 12...
Be7 {[%clk 0:02:50.5]} 13. Rad1 {[%clk 0:02:00.8]} 13... O-O {[%clk 0:02:49.5]}
14. a3 {[%clk 0:01:58.2]} 14... Rac8 {[%clk 0:02:47.7]} 15. Qd2 {[%clk
0:01:57.5]} 15... Rc4 {[%clk 0:02:35.9]} 16. g4 {[%clk 0:01:43.9]} 16... Nxe3
{[%clk 0:02:34.3]} 17. fxe3 {[%clk 0:01:44.8]} 17... Qb3 {[%clk 0:02:20.6]} 18.
Qg2 {[%clk 0:01:33.5]} 18... Bxa3 {[%clk 0:02:15.1]} 19. Nd2 {[%clk 0:01:29.6]}
19... Qxb2 {[%clk 0:02:09.1]} 20. Nxc4 {[%clk 0:01:29]} 20... dxc4 {[%clk
0:01:59.9]} 21. Nb1 {[%clk 0:00:58.9]} 21... Qxg2+ {[%clk 0:01:56.7]} 22. Kxg2
{[%clk 0:00:58.7]} 22... Bc6+ {[%clk 0:01:55.1]} 23. Kf2 {[%clk 0:00:56.6]}
23... Be7 {[%clk 0:01:47.1]} 24. Nc3 {[%clk 0:00:44.3]} 24... b5 {[%clk
0:01:45.5]} 25. d5 {[%clk 0:00:44.9]} 25... exd5 {[%clk 0:01:40.7]} 26. Nxd5
{[%clk 0:00:45.8]} 26... Bc5 {[%clk 0:01:38.6]} 27. Kf3 {[%clk 0:00:31.1]} 27...
Re8 {[%clk 0:01:34.1]} 28. e4 {[%clk 0:00:31.3]} 28... Rxe5 {[%clk 0:01:26.1]}
29. Nc3 {[%clk 0:00:20.1]} 29... Kf8 {[%clk 0:01:14.9]} 30. Rd8+ {[%clk
0:00:20]} 30... Ke7 {[%clk 0:01:09.8]} 31. Rc8 {[%clk 0:00:20.3]} 31... Kd7
{[%clk 0:01:09]} 32. Rd1+ {[%clk 0:00:19.7]} 32... Kxc8 {[%clk 0:01:08.6]} 0-1